fUST/lending_fUST_20251106
["ID","MTS","AMOUNT","RATE_DAILY","PERIOD"]
[393293443,1762427544509,1362.38,0.00037269,21]
[393293444,1762427544810,1362.38,0.00037269,21]
[393293445,1762427544944,362.00134423,0.00037269,60]
[393293446,1762427545042,1362.38,0.00037269,21]
[393293448,1762427545323,1362.38,0.00037269,21]
[393293450,1762427545588,1362.38,0.00037269,21]
[393293452,1762427545863,1362.38,0.00037269,21]
[393293453,1762427545898,379.8239767,0.00037269,60]
[393293455,1762427546136,1362.38,0.00037269,21]
[393293456,1762427546361,1362.38,0.00037269,21]
[393293458,1762427546604,1362.38,0.00037269,21]
[393293461,1762427546850,1362.38,0.00037269,21]
[393293463,1762427547147,1362.38,0.00037269,21]
[393293467,1762427547677,1362.38,0.00037269,21]
[393293469,1762427547925,1362.38,0.00037269,21]
[393293472,1762427548170,1362.61346127,0.00037269,21]
[393293479,1762427548916,383.39287706,0.00037269,30]
[393293492,1762427550573,416.19671321,0.00037269,60]
[393293493,1762427550674,208.79815503,0.00037269,60]
[393293495,1762427550850,379.53260427,0.00037269,60]
[393293513,1762427553927,397.83813686,0.00037269,60]
[393293538,1762427555684,331.74179472,0.00037269,60]
[393293546,1762427560958,341.43,0.00037269,35]
[393293573,1762427568022,272.31032113,0.00037269,60]
[393293580,1762427568722,323.38940289,0.00037269,60]
[393293592,1762427571069,414.45880392,0.00037269,60]
[393293593,1762427573376,235.24579673,0.00037269,60]
[393293594,1762427573833,240.71285396,0.00037269,60]
[393293595,1762427574632,367.13463347,0.00037269,60]
[393293616,1762427583053,371.59560448,0.00037269,60]
[393293633,1762427589896,343.17985352,0.00037269,60]
[393293634,1762427589983,265.0356707,0.00037269,60]
[393293641,1762427591760,349.97439718,0.00037269,60]
[393293645,1762427592668,239.98169397,0.00037269,60]
[393293655,1762427594206,292.0057306,0.00037269,60]
[393293664,1762427595367,302.27995533,0.00037269,60]
[393293665,1762427596031,254.23932323,0.00037269,60]
[393293667,1762427596290,164.59323303,0.00037269,60]
[393293675,1762427599351,360.5980776,0.00037269,60]
[393293680,1762427600294,431.40134427,0.00037269,60]
[393293683,1762427600856,209.74991392,0.00037269,60]
[393293684,1762427601280,231.47155325,0.00037269,60]
[393293709,1762427608431,236.65058937,0.00037269,60]
[393293733,1762427612156,293.02841835,0.00037269,60]
[393293734,1762427612715,337.66307591,0.00037269,60]
[393293739,1762427614169,208.14299534,0.00037269,60]
[393293751,1762427615243,248.95456564,0.00037269,60]
[393293814,1762427624993,228.39550061,0.00037269,60]
[393293826,1762427626787,190.47507505,0.00037269,60]
[393293836,1762427630069,197.50087273,0.00037269,60]
[393293861,1762427634888,433.83434952,0.00037269,60]
[393293866,1762427637636,440.2090685,0.00037269,60]
[393293940,1762427653145,234.62458928,0.00037268,60]
[393293959,1762427662489,171.16824738,0.00037268,60]
[393293969,1762427664590,436.78112575,0.00037268,60]
[393293991,1762427671064,402.85485669,0.00037268,60]
[393294067,1762427704435,165.25547719,0.00037268,60]
[393294072,1762427710044,184.61126883,0.00037268,60]
[393294090,1762427716371,433.15870241,0.00037268,60]
[393294099,1762427717336,151.0,0.00037268,60]
[393294106,1762427718111,156.587,0.00037268,60]
[393294112,1762427718755,162.380719,0.00037268,60]
[393294118,1762427719402,168.3888056,0.00037268,60]
[393294120,1762427719979,238.22015697,0.00037268,60]
[393294121,1762427720069,174.61919141,0.00037268,60]
[393294123,1762427720724,181.08010149,0.00037268,60]
[393294124,1762427721327,187.78006525,0.00037268,60]
[393294127,1762427721936,194.72792766,0.00037268,60]
[393294132,1762427722594,194.72792766,0.00037268,60]
[393294155,1762427728506,492.58303265,0.00037268,60]
[393294166,1762427730444,170.34338591,0.00037268,60]
[393294185,1762427732938,283.40143825,0.00037268,60]
[393294203,1762427734802,311.0864899,0.00037268,60]
[393294208,1762427738346,428.00848027,0.00037268,60]
[393294218,1762427742162,236.29715039,0.00037268,60]
[393294223,1762427743144,180.8893382,0.00037268,60]
[393294231,1762427746322,152.87724579,0.00037268,60]
[393294251,1762427751594,293.72025173,0.00037268,60]
[393294252,1762427752815,751.3,0.00032876,120]
[393294266,1762427756395,275.22947903,0.00037268,60]
[393294284,1762427761139,354.27383392,0.00037268,60]
[393294288,1762427763287,487.02781882,0.00037268,60]
[393294297,1762427765285,242.57768135,0.00037268,60]
[393294306,1762427767024,304.12637513,0.00037268,60]
[393294311,1762427768743,376.13930573,0.00037268,60]
[393294317,1762427776772,223.34884434,0.00037268,60]
[393294318,1762427777137,314.14483312,0.00037268,60]
[393294321,1762427778892,262.80930526,0.00037268,60]
[393294322,1762427783591,200.0,0.00037268,30]
[393294329,1762427785029,430.3638156,0.00037268,60]
[393294332,1762427785347,335.08851789,0.00037268,60]
[393294337,1762427786428,254.80202846,0.00037268,60]
[393294351,1762427790414,401.48576794,0.00037268,60]
[393294356,1762427791472,391.69451075,0.00037268,60]
[393294363,1762427795284,220.97152835,0.00037268,60]
[393294373,1762427798037,219.37887414,0.00037268,60]
[393294381,1762427800762,198.97505159,0.00037268,60]
[393294383,1762427801128,385.16035165,0.00037268,60]
[393294390,1762427804326,202.52554403,0.00037268,60]
[393294402,1762427806822,488.25952943,0.00037268,60]
[393294407,1762427809125,289.10054734,0.00037268,60]
[393294417,1762427813185,458.27399457,0.00037268,60]
[393294419,1762427813934,314.18860631,0.00037268,60]
[393294420,1762427814916,414.07097944,0.00037268,60]
[393294429,1762427816649,486.18648229,0.00037268,60]
[393294432,1762427817163,290.35470506,0.00037268,60]
[393294476,1762427826330,167.2623722,0.00037268,60]
[393294658,1762427843080,238.14628677,0.00037268,60]
[393294726,1762427851926,215.28372221,0.00037268,60]
[393294781,1762427862287,274.40242227,0.00037268,60]
[393294861,1762427891965,344.0870848,0.00037268,60]
[393295426,1762428071132,500.0,0.00037269,60]
[393295427,1762428071381,500.0,0.00037269,60]
[393295428,1762428071834,500.0,0.00037269,60]
[393295430,1762428072088,500.0,0.00037269,60]
[393295433,1762428072323,500.0,0.00037269,60]
[393295434,1762428072553,500.0,0.00037269,60]
[393295443,1762428082269,200.0,0.00037269,30]
[393295828,1762428332102,-202.0,0.00016543,2]
[393295829,1762428332123,-150.0,0.00016662,2]
[393295830,1762428332145,-177.0,0.00018662,2]
[393295831,1762428332166,-65.0,0.00020662,2]
[393295945,1762428429102,-147.98546555,0.00020662,2]
[393295946,1762428429129,-150.0,0.00023033,2]
[393295947,1762428429151,-399.6403651,0.00023567,2]
[393295948,1762428429174,-200.0,0.00024658,15]
[393295949,1762428429196,-54.33771114,0.00024664,2]
[393296000,1762428435766,501.31869222,0.00037269,120]
[393296065,1762428451086,-159.29691813,0.00024664,2]
[393296066,1762428451108,-86.32048619,0.00024664,2]
[393296080,1762428460074,165.82163755,0.00037269,30]
[393296116,1762428482861,154.52367979,0.00037269,120]
[393296117,1762428492374,150.60208319,0.00037269,120]
[393296119,1762428500117,333.98240891,0.00037269,30]
[393296120,1762428501173,155.55427055,0.00037269,30]
[393296121,1762428502433,620.86316864,0.00037269,120]
[393296122,1762428504865,468.8423644,0.00037269,20]
[393296123,1762428505324,240.79900962,0.00037269,30]
[393296127,1762428507667,163.58166991,0.00037269,30]
[393296128,1762428507897,312.59445734,0.00037269,120]
[393296131,1762428508967,266.15755962,0.00037269,120]
[393296133,1762428511490,254.92086421,0.00037269,60]
[393296134,1762428511574,220.29846723,0.00037269,30]
[393296136,1762428512552,280.58618785,0.00037269,30]
[393296143,1762428513800,196.14959263,0.00037269,120]
[393296148,1762428515643,505.79275111,0.00037269,120]
[393296149,1762428516002,225.37163847,0.00037269,120]
[393296150,1762428517473,291.57237675,0.00037269,30]
[393296151,1762428517696,150.57893179,0.00037269,120]
[393296152,1762428517775,338.29549813,0.00037269,60]
[393296159,1762428549084,-829.02928524,0.00018,2]
[393296160,1762428549105,-2067.59245079,0.0002,2]
[393296161,1762428549127,-196.91433181,0.00020509,2]
[393296164,1762428556124,-83.30331392,0.00020509,2]
[393296171,1762428570082,-150.0,0.00023017,2]
[393296172,1762428570102,-173.952338,0.00023448,2]
[393296173,1762428570122,-628.29771981,0.00024664,2]
[393296174,1762428570143,-1200.0,0.00024687,2]
[393296175,1762428570162,-301.58751679,0.00024687,2]
[393296181,1762428587858,286.346244,0.00013699,2]
[393296182,1762428588135,286.346244,0.00020187,2]
[393296257,1762428637675,-150.0,0.00023046,2]
[393296258,1762428637685,-533.88842277,0.00024687,2]
[393296259,1762428637696,-364.52406044,0.00024687,2]
[393296260,1762428637706,-300.0,0.00024687,2]
[393296261,1762428637724,-393.7118596,0.00024687,2]
[393296262,1762428637738,-54.2881404,0.00024687,2]
[393296263,1762428637747,-180.07,0.00024688,3]
[393296264,1762428637757,-540.21,0.00024688,3]
[393296265,1762428637767,-1312.31266493,0.00024688,10]
[393296266,1762428637778,-60.90733507,0.00024688,10]
[393296267,1762428637788,-1144.35,0.00024688,10]
[393296268,1762428637797,-953.62,0.00024688,10]
[393296269,1762428637806,-1200.0,0.00024695,2]
[393296270,1762428637815,-500.0,0.00024697,2]
[393296271,1762428637824,-500.0,0.00024697,2]
[393296273,1762428637833,-500.0,0.00024697,2]
[393296275,1762428637843,-500.0,0.00024697,2]
[393296276,1762428637852,-500.0,0.00024697,2]
[393296277,1762428637861,-500.0,0.00024697,2]
[393296278,1762428637870,-500.0,0.00024697,2]
[393296279,1762428637879,-421.69178226,0.00024697,2]
[393296280,1762428637888,-500.0,0.00024697,2]
[393296281,1762428637897,-500.0,0.00024697,2]
[393296282,1762428637906,-253.58348024,0.00024698,2]
[393296283,1762428637915,-43265.84740243,0.00024698,2]
[393296331,1762428639972,-380.00040936,0.00024698,2]
[393296730,1762428643968,-213.63462927,0.000246,2]
[393296731,1762428643978,-986.36605528,0.00024698,2]
[393296733,1762428644023,-963.63518554,0.00024698,2]
[393296858,1762429031290,150.0,0.00037267,120]
[393296879,1762429072134,514.387777,0.00037267,60]
[393296904,1762429390725,210.1163149,0.00037267,120]
[393296910,1762429632120,-150.0,0.00016643,2]
[393296911,1762429632143,-55.46102249,0.00018156,2]
[393296918,1762429652125,-94.53897751,0.00018156,2]
[393296919,1762429652149,-231.0,0.00018681,2]
[393296920,1762429652169,-301.0,0.00020614,2]
[393296921,1762429652193,-1200.0,0.00024354,2]
[393296922,1762429652212,-300.0,0.00024354,2]
[393296923,1762429652231,-567.88658237,0.00024355,2]
[393296925,1762429767093,-150.0,0.00024111,5]
[393296975,1762429832053,-299.38061777,0.00024354,2]
[393296977,1762429832065,-0.61938223,0.00024354,2]
[393296979,1762429832074,-434.0,0.00024354,2]
[393296981,1762429832083,-256.43955303,0.00024355,2]
[393296983,1762429832092,-384.27789659,0.00024355,2]
[393297030,1762429837834,-1334.02913651,0.00024355,2]
[393297031,1762429837844,-868.6414215,0.00024355,2]
[393297032,1762429837854,-2188.8704508,0.00024355,2]
[393297033,1762429837864,-625.29093025,0.000245,2]
[393297034,1762429837873,-360.14,0.00024588,3]
[393297035,1762429837883,-931.43,0.00024588,10]
[393297036,1762429837892,-776.19,0.00024588,10]
[393297037,1762429837902,-646.82,0.00024588,10]
[393297038,1762429837914,-546.85464247,0.00024597,2]
[393297039,1762429837923,-500.0,0.00024597,2]
[393297040,1762429837933,-500.0,0.00024597,2]
[393297041,1762429837942,-500.0,0.00024597,2]
[393297042,1762429837951,-300.0,0.00024597,2]
[393297043,1762429837961,-500.0,0.00024597,2]
[393297045,1762429837970,-376.33640268,0.00024597,2]
[393297046,1762429837980,-548182.64729413,0.00024598,2]
[393297047,1762429837990,-404.13,0.000246,2]
[393297048,1762429837999,-404.13,0.000246,2]
[393297049,1762429838008,-399.6403651,0.00024646,2]
[393297050,1762429838018,-404.13,0.000247,2]
[393297051,1762429838028,-404.13,0.000247,2]
[393297052,1762429838038,-374.961044,0.00024714,2]
[393297053,1762429838048,-686.34984053,0.00024714,2]
[393297054,1762429838058,-1220.17749427,0.00024714,2]
[393297055,1762429838068,-434.01188958,0.00024714,2]
[393297056,1762429838078,-206.16002032,0.00024714,2]
[393297057,1762429838088,-160.0,0.00024733,2]
[393297058,1762429838098,-160.0,0.00024762,2]
[393297059,1762429838107,-3776.8770047,0.00024764,2]
[393297060,1762429838118,-500.0,0.00024773,2]
[393297061,1762429838128,-163.55,0.000248,7]
[393297062,1762429838138,-158.73,0.000248,14]
[393297063,1762429838149,-151.0,0.000248,7]
[393297064,1762429838159,-255.268017,0.000248,7]
[393297065,1762429838169,-151.0,0.000248,7]
[393297066,1762429838178,-151.663903,0.000248,7]
[393297067,1762429838188,-151.0,0.000248,7]
[393297068,1762429838198,-155.110659,0.000248,7]
[393297069,1762429838207,-151.0,0.000248,7]
[393297070,1762429838219,-151.0,0.000248,7]
[393297071,1762429838228,-152.820717,0.000248,7]
[393297072,1762429838239,-151.0,0.000248,7]
[393297073,1762429838248,-151.0,0.000248,7]
[393297074,1762429838258,-152.184303,0.000248,7]
[393297075,1762429838268,-151.0,0.000248,7]
[393297076,1762429838277,-151.0,0.000248,7]
[393297077,1762429838287,-151.0,0.000248,7]
[393297078,1762429838297,-151.86437,0.000248,7]
[393297079,1762429838306,-172.635232,0.000248,7]
[393297080,1762429838315,-151.0,0.000248,7]
[393297081,1762429838325,-151.0,0.000248,7]
[393297082,1762429838334,-151.0,0.000248,7]
[393297083,1762429838344,-151.0,0.000248,7]
[393297084,1762429838353,-412.893938,0.000248,7]
[393297085,1762429838363,-412.893938,0.000248,7]
[393297086,1762429838372,-340.321544,0.000248,7]
[393297087,1762429838383,-340.321544,0.000248,7]
[393297088,1762429838394,-412.893938,0.000248,7]
[393297089,1762429838404,-340.321544,0.000248,7]
[393297090,1762429838414,-412.893938,0.000248,7]
[393297091,1762429838424,-340.321544,0.000248,7]
[393297092,1762429838434,-151.0,0.000248,7]
[393297093,1762429838444,-164.473365,0.000248,7]
[393297094,1762429838453,-151.0,0.000248,7]
[393297095,1762429838463,-151.0,0.000248,7]
[393297096,1762429838472,-151.0,0.000248,7]
[393297097,1762429838482,-151.0,0.000248,7]
[393297098,1762429838493,-151.0,0.000248,7]
[393297099,1762429838502,-151.0,0.000248,7]
[393297100,1762429838512,-151.0,0.000248,7]
[393297101,1762429838521,-151.0,0.000248,7]
[393297102,1762429838532,-151.0,0.000248,7]
[393297103,1762429838541,-151.0,0.000248,7]
[393297104,1762429838550,-151.0,0.000248,7]
[393297105,1762429838560,-151.0,0.000248,7]
[393297106,1762429838570,-154.249423,0.000248,7]
[393297107,1762429838580,-232.40346,0.000248,7]
[393297108,1762429838590,-151.0,0.000248,7]
[393297109,1762429838600,-232.40346,0.000248,7]
[393297110,1762429838611,-151.0,0.000248,7]
[393297111,1762429838620,-232.40346,0.000248,7]
[393297112,1762429838631,-232.40346,0.000248,7]
[393297113,1762429838641,-151.0,0.000248,7]
[393297114,1762429838651,-151.0,0.000248,7]
[393297115,1762429838660,-232.40346,0.000248,7]
[393297116,1762429838670,-232.40346,0.000248,7]
[393297117,1762429838680,-151.0,0.000248,7]
[393297118,1762429838689,-151.0,0.000248,7]
[393297119,1762429838699,-232.40346,0.000248,7]
[393297120,1762429838708,-232.40346,0.000248,7]
[393297121,1762429838718,-151.0,0.000248,7]
[393297122,1762429838728,-151.0,0.000248,7]
[393297123,1762429838738,-151.0,0.000248,7]
[393297124,1762429838748,-298.685052,0.000248,7]
[393297125,1762429838757,-151.0,0.000248,7]
[393297126,1762429838766,-151.0,0.000248,7]
[393297127,1762429838776,-151.0,0.000248,7]
[393297128,1762429838785,-151.0,0.000248,7]
[393297129,1762429838794,-192.292674,0.000248,7]
[393297130,1762429838803,-151.0,0.000248,7]
[393297131,1762429838812,-151.0,0.000248,7]
[393297132,1762429838822,-151.0,0.000248,7]
[393297133,1762429838831,-151.0,0.000248,7]
[393297134,1762429838840,-151.0,0.000248,7]
[393297135,1762429838850,-151.0,0.000248,7]
[393297136,1762429838859,-151.0,0.000248,7]
[393297137,1762429838869,-159.599609,0.000248,7]
[393297138,1762429838879,-151.0,0.000248,7]
[393297139,1762429838889,-151.0,0.000248,7]
[393297140,1762429838899,-151.0,0.000248,7]
[393297141,1762429838912,-151.0,0.000248,7]
[393297142,1762429838922,-151.0,0.000248,7]
[393297143,1762429838932,-151.0,0.000248,7]
[393297144,1762429838942,-151.0,0.000248,7]
[393297145,1762429838952,-151.0,0.000248,7]
[393297146,1762429838961,-151.0,0.000248,7]
[393297147,1762429838971,-151.0,0.000248,7]
[393297148,1762429838980,-151.0,0.000248,7]
[393297149,1762429838992,-151.0,0.000248,7]
[393297150,1762429839002,-151.0,0.000248,7]
[393297151,1762429839012,-151.0,0.000248,7]
[393297152,1762429839023,-151.0,0.000248,7]
[393297153,1762429839033,-154.387286,0.000248,7]
[393297154,1762429839043,-315.164797,0.000248,7]
[393297155,1762429839052,-315.164797,0.000248,7]
[393297156,1762429839062,-315.164797,0.000248,7]
[393297157,1762429839073,-151.0,0.000248,7]
[393297158,1762429839083,-153.136036,0.000248,7]
[393297159,1762429839093,-315.164797,0.000248,7]
[393297160,1762429839102,-315.164797,0.000248,7]
[393297161,1762429839111,-315.164797,0.000248,7]
[393297162,1762429839121,-151.0,0.000248,7]
[393297163,1762429839131,-162.147268,0.000248,7]
[393297164,1762429839141,-315.164797,0.000248,7]
[393297165,1762429839155,-315.164797,0.000248,7]
[393297166,1762429839166,-151.0,0.000248,7]
[393297167,1762429839176,-301.145456,0.000248,7]
[393297168,1762429839186,-151.0,0.000248,7]
[393297169,1762429839195,-151.0,0.000248,7]
[393297170,1762429839210,-151.0,0.000248,7]
[393297171,1762429839220,-151.0,0.000248,7]
[393297172,1762429839231,-151.0,0.000248,7]
[393297173,1762429839241,-151.0,0.000248,7]
[393297174,1762429839251,-151.0,0.000248,7]
[393297175,1762429839261,-151.0,0.000248,7]
[393297176,1762429839271,-151.0,0.000248,7]
[393297177,1762429839281,-151.0,0.000248,7]
[393297178,1762429839290,-151.0,0.000248,7]
[393297179,1762429839300,-151.0,0.000248,7]
[393297180,1762429839310,-151.0,0.000248,7]
[393297181,1762429839319,-151.0,0.000248,7]
[393297182,1762429839329,-151.0,0.000248,7]
[393297183,1762429839338,-161.148199,0.000248,7]
[393297184,1762429839347,-151.0,0.000248,7]
[393297185,1762429839357,-151.0,0.000248,7]
[393297186,1762429839367,-151.0,0.000248,7]
[393297187,1762429839379,-152.243365,0.000248,7]
[393297188,1762429839389,-157.864665,0.000248,7]
[393297189,1762429839399,-157.864665,0.000248,7]
[393297190,1762429839408,-157.864665,0.000248,7]
[393297191,1762429839418,-157.864665,0.000248,7]
[393297192,1762429839428,-157.864665,0.000248,7]
[393297193,1762429839437,-157.864665,0.000248,7]
[393297194,1762429839446,-216.062872,0.000248,7]
[393297195,1762429839456,-216.062872,0.000248,7]
[393297196,1762429839465,-216.062872,0.000248,7]
[393297197,1762429839474,-157.864665,0.000248,7]
[393297198,1762429839483,-157.864665,0.000248,7]
[393297199,1762429839492,-216.062872,0.000248,7]
[393297200,1762429839501,-216.062872,0.000248,7]
[393297201,1762429839510,-216.062872,0.000248,7]
[393297202,1762429839519,-216.062872,0.000248,7]
[393297203,1762429839529,-216.062872,0.000248,7]
[393297204,1762429839538,-216.062872,0.000248,7]
[393297205,1762429839548,-216.062872,0.000248,7]
[393297206,1762429839557,-216.062872,0.000248,7]
[393297207,1762429839566,-216.062872,0.000248,7]
[393297208,1762429839575,-151.0,0.000248,7]
[393297209,1762429839584,-155.849933,0.000248,7]
[393297210,1762429839597,-357.970504,0.000248,7]
[393297211,1762429839606,-357.970504,0.000248,7]
[393297212,1762429839619,-357.970504,0.000248,7]
[393297213,1762429839629,-357.970504,0.000248,7]
[393297214,1762429839638,-357.970504,0.000248,7]
[393297215,1762429839648,-357.970504,0.000248,7]
[393297217,1762429839658,-357.970504,0.000248,7]
[393297218,1762429839668,-357.970504,0.000248,7]
[393297219,1762429839678,-357.970504,0.000248,7]
[393297220,1762429839687,-357.970504,0.000248,7]
[393297221,1762429839696,-357.970504,0.000248,7]
[393297222,1762429839706,-357.970504,0.000248,7]
[393297223,1762429839715,-404.13,0.000248,2]
[393297224,1762429839724,-404.13,0.000248,2]
[393297225,1762429839734,-168.0,0.00024803,2]
[393297226,1762429839744,-542.281818,0.0002489,2]
[393297227,1762429839754,-151.0,0.0002489,7]
[393297229,1762429839764,-151.522314,0.0002489,7]
[393297231,1762429839773,-151.0,0.0002489,7]
[393297233,1762429839782,-151.0,0.0002489,7]
[393297235,1762429839791,-151.0,0.0002489,7]
[393297237,1762429839800,-151.0,0.0002489,7]
[393297239,1762429839809,-188.681201,0.0002489,7]
[393297255,1762429839959,-188.681201,0.0002489,7]
[393297258,1762429839970,-188.681201,0.0002489,7]
[393297260,1762429839982,-188.681201,0.0002489,7]
[393297262,1762429839992,-151.0,0.0002489,7]
[393297263,1762429840001,-151.0,0.0002489,7]
[393297265,1762429840010,-151.0,0.0002489,7]
[393297267,1762429840020,-151.0,0.0002489,7]
[393297269,1762429840029,-151.0,0.0002489,7]
[393297271,1762429840038,-151.0,0.0002489,7]
[393297273,1762429840048,-151.0,0.0002489,7]
[393297275,1762429840057,-151.0,0.0002489,7]
[393297277,1762429840067,-154.213971,0.0002489,7]
[393297279,1762429840076,-151.0,0.0002489,7]
[393297281,1762429840085,-151.0,0.0002489,7]
[393297283,1762429840094,-151.0,0.0002489,7]
[393297285,1762429840104,-151.0,0.0002489,7]
[393297287,1762429840113,-151.0,0.0002489,7]
[393297289,1762429840121,-151.0,0.0002489,7]
[393297291,1762429840130,-151.0,0.0002489,7]
[393297293,1762429840140,-151.0,0.0002489,7]
[393297295,1762429840150,-151.0,0.0002489,7]
[393297297,1762429840159,-151.0,0.0002489,7]
[393297299,1762429840168,-151.0,0.0002489,7]
[393297301,1762429840178,-155.12031,0.0002489,7]
[393297303,1762429840188,-230.216015,0.0002489,7]
[393297305,1762429840197,-151.0,0.0002489,7]
[393297307,1762429840206,-151.0,0.0002489,7]
[393297309,1762429840215,-151.0,0.0002489,7]
[393297311,1762429840224,-151.0,0.0002489,7]
[393297313,1762429840234,-151.0,0.0002489,7]
[393297315,1762429840243,-151.0,0.0002489,7]
[393297317,1762429840252,-152.531925,0.0002489,7]
[393297319,1762429840261,-215.479854,0.0002489,7]
[393297321,1762429840271,-151.0,0.0002489,7]
[393297323,1762429840280,-151.0,0.0002489,7]
[393297325,1762429840289,-156.808258,0.0002489,7]
[393297327,1762429840299,-412.893938,0.0002489,7]
[393297329,1762429840308,-412.893938,0.0002489,7]
[393297331,1762429840317,-412.893938,0.0002489,7]
[393297333,1762429840327,-412.893938,0.0002489,7]
[393297335,1762429840336,-340.321544,0.0002489,7]
[393297337,1762429840345,-412.893938,0.0002489,7]
[393297339,1762429840354,-340.321544,0.0002489,7]
[393297341,1762429840363,-340.321544,0.0002489,7]
[393297343,1762429840373,-412.893938,0.0002489,7]
[393297345,1762429840383,-340.321544,0.0002489,7]
[393297347,1762429840392,-340.321544,0.0002489,7]
[393297349,1762429840402,-412.893938,0.0002489,7]
[393297351,1762429840411,-340.321544,0.0002489,7]
[393297353,1762429840420,-412.893938,0.0002489,7]
[393297355,1762429840429,-412.893938,0.0002489,7]
[393297357,1762429840438,-340.321544,0.0002489,7]
[393297359,1762429840447,-340.321544,0.0002489,7]
[393297361,1762429840456,-340.321544,0.0002489,7]
[393297363,1762429840465,-412.893938,0.0002489,7]
[393297365,1762429840474,-412.893938,0.0002489,7]
[393297367,1762429840483,-412.893938,0.0002489,7]
[393297369,1762429840492,-340.321544,0.0002489,7]
[393297371,1762429840501,-340.321544,0.0002489,7]
[393297373,1762429840511,-340.321544,0.0002489,7]
[393297375,1762429840519,-151.0,0.0002489,7]
[393297377,1762429840528,-151.0,0.0002489,7]
[393297379,1762429840537,-151.0,0.0002489,7]
[393297381,1762429840546,-154.648154,0.0002489,7]
[393297383,1762429840555,-151.0,0.0002489,7]
[393297385,1762429840564,-151.0,0.0002489,7]
[393297387,1762429840573,-151.0,0.0002489,7]
[393297389,1762429840582,-151.0,0.0002489,7]
[393297391,1762429840591,-151.0,0.0002489,7]
[393297393,1762429840600,-151.0,0.0002489,7]
[393297395,1762429840608,-151.0,0.0002489,7]
[393297397,1762429840617,-160.771972,0.0002489,7]
[393297399,1762429840627,-151.0,0.0002489,7]
[393297400,1762429840636,-151.0,0.0002489,7]
[393297402,1762429840645,-151.0,0.0002489,7]
[393297404,1762429840653,-151.0,0.0002489,7]
[393297406,1762429840662,-151.0,0.0002489,7]
[393297408,1762429840671,-151.0,0.0002489,7]
[393297410,1762429840680,-151.0,0.0002489,7]
[393297412,1762429840689,-151.0,0.0002489,7]
[393297414,1762429840698,-201.967119,0.0002489,7]
[393297416,1762429840707,-151.749205,0.0002489,7]
[393297418,1762429840717,-272.013938,0.0002489,7]
[393297420,1762429840726,-232.40346,0.0002489,7]
[393297422,1762429840735,-151.0,0.0002489,7]
[393297424,1762429840744,-232.40346,0.0002489,7]
[393297426,1762429840752,-151.0,0.0002489,7]
[393297428,1762429840760,-232.40346,0.0002489,7]
[393297430,1762429840769,-151.0,0.0002489,7]
[393297432,1762429840778,-232.40346,0.0002489,7]
[393297434,1762429840787,-151.0,0.0002489,7]